[Event "WYCC 2018 O14"]
[Site "Halkidiki"]
[Date "2018.10.23"]
[Round "5"]
[White "Krallis, Christos"]
[Black "Tsay, Vincent"]
[Result "1/2-1/2"]
[ECO "D02"]
[WhiteElo "2139"]
[BlackElo "2310"]
[Annotator "ChessBase"]
[PlyCount "160"]
[EventDate "2018.10.20"]
[EventType "swiss"]
[EventCountry "GRE"]
[SourceTitle "playchess.com"]
[Source "ChessBase"]
[SourceQuality "1"]
[TimeControl "40/5400+30:1800+30"]

1. d4 {[%emt 0:00:14]} d5 {[%emt 0:00:00]} 2. Nf3 {[%emt 0:00:07]} Nf6 {[%emt 0:00:00]} 3. c4 {[%emt 0:00:09]} e6 {[%emt 0:00:00]} 4. e3 {[%emt 0:00:20]} c5 {[%emt 0:00:38]} 5. a3 {[%emt 0:01:29]} a6 {[%emt 0:01:36]} 6. dxc5 {[%emt 0:00:27]} Bxc5 {[%emt 0:00:29]} 7. b4 {[%emt 0:00:16]} Be7 {[%emt 0:00:45]} 8. Bb2 {[%emt 0:00:36]} O-O {[%emt 0:00:18]} 9. Nbd2 {[%emt 0:01:11]} Nc6 {[%emt 0:00:40]} 10. Be2 {[%emt 0:07:00]} Qc7 {[%emt 0:14:12]} 11. Qc2 {[%emt 0:02:42]} Bd7 {[%emt 0:03:12]} 12. O-O {[%emt 0:06:21]} Rac8 {[%emt 0:02:15]} 13. Rac1 {[%emt 0:04:17]} Qb8 {[%emt 0:03:20]} 14. Qb3 {[%emt 0:03:37]} Rfd8 {[%emt 0:03:00]} 15. c5 {[%emt 0:05:31]} Be8 {[%emt 0:09:17]} 16. Nd4 {[%emt 0:08:36]} Qa7 {[%emt 0:25:55]} 17. Nxc6 {[%emt 0:11:40]} Bxc6 {[%emt 0:01:54]} 18. Bd4 {[%emt 0:17:20]} Qb8 {[%emt 0:07:07]} 19. f4 {[%emt 0:01:15]} Be8 {[%emt 0:06:43]} 20. Nf3 {[%emt 0:06:19]} Ne4 {[%emt 0:01:04]} 21. Bd3 {[%emt 0:02:39]} Bf8 {[%emt 0:04:52]} 22. Rc2 {[%emt 0:04:17]} Qc7 {[%emt 0:02:07]} 23. Ne5 {[%emt 0:02:46]} Kh8 {[%emt 0:03:31]} 24. Rfc1 {[%emt 0:06:30]} f6 {[%emt 0:01:29]} 25. Nf3 {[%emt 0:00:54]} Qc6 {[%emt 0:01:15]} 26. Ba1 {[%emt 0:02:55]} Qa4 {[%emt 0:02:23]} 27. Qb2 {[%emt 0:01:33]} Bb5 {[%emt 0:02:57]} 28. Bxb5 {[%emt 0:00:45]} Qxb5 {[%emt 0:00:19]} 29. Nd4 {[%emt 0:00:20]} Qd3 {[%emt 0:01:51]} 30. Qb3 {[%emt 0:00:06]} Qxb3 {[%emt 0:00:13]} 31. Nxb3 {[%emt 0:00:06]} Kg8 {[%emt 0:00:08]} 32. Na5 {[%emt 0:02:01]} Rc7 {[%emt 0:00:47]} 33. Bd4 {[%emt 0:00:50]} Rdc8 {[%emt 0:01:10]} 34. c6 {[%emt 0:00:14]} bxc6 {[%emt 0:00:18]} 35. Rxc6 {[%emt 0:00:08]} Bd6 {[%emt 0:00:30]} 36. Rxc7 {[%emt 0:00:38]} Rxc7 {[%emt 0:00:04]} 37. Rxc7 {[%emt 0:00:32]} Bxc7 {[%emt 0:00:01]} 38. Nc6 {[%emt 0:01:16]} Kf7 {[%emt 0:00:19]} 39. a4 {[%emt 0:00:50]} Ke8 {[%emt 0:01:31]} 40. b5 {[%emt 0:00:00]} axb5 {[%emt 0:00:00]} 41. axb5 {[%emt 0:00:27]} Kd7 {[%emt 0:01:51]} 42. Nb4 {[%emt 0:07:50]} Bd6 {[%emt 0:11:44]} 43. Nd3 {[%emt 0:00:31]} Kc7 {[%emt 0:01:09]} 44. g4 {[%emt 0:04:14]} Nd2 {[%emt 0:07:42]} 45. Bc5 {[%emt 0:00:20]} Nc4 {[%emt 0:01:56]} 46. Kf2 {[%emt 0:01:40]} e5 {[%emt 0:01:47]} 47. Bxd6+ {[%emt 0:02:27]} Kxd6 {[%emt 0:00:18]} 48. f5 {[%emt 0:03:17]} Nb6 {[%emt 0:03:49]} 49. h4 {[%emt 0:01:40]} Na4 {[%emt 0:00:49]} 50. h5 {[%emt 0:01:51]} Nc3 {[%emt 0:01:33]} 51. b6 {[%emt 0:00:52]} Na4 {[%emt 0:02:27]} 52. b7 {[%emt 0:00:34]} Kc7 {[%emt 0:00:04]} 53. Nb4 {[%emt 0:00:31]} Nc3 {[%emt 0:00:57]} 54. Nc6 {[%emt 0:00:24]} Kxb7 {[%emt 0:00:05]} 55. Nd8+ {[%emt 0:00:07]} Kc8 {[%emt 0:00:03]} 56. Ne6 {[%emt 0:00:05]} Ne4+ {[%emt 0:00:42]} 57. Ke2 {[%emt 0:00:34]} Kd7 {[%emt 0:01:30]} 58. Nxg7 {[%emt 0:00:08]} Ng5 {[%emt 0:00:18]} 59. Kd3 {[%emt 0:07:55]} h6 {[%emt 0:00:20]} 60. Kc3 {[%emt 0:00:19]} Ke7 {[%emt 0:00:07]} 61. Kb4 {[%emt 0:00:21]} Ne4 {[%emt 0:02:20]} 62. Ne6 {[%emt 0:00:56]} Nf2 {[%emt 0:00:41]} 63. Nc7 {[%emt 0:00:22]} Kd6 {[%emt 0:00:30]} 64. Ne8+ {[%emt 0:00:05]} Ke7 {[%emt 0:00:05]} 65. Nc7 {[%emt 0:00:04]} d4 {[%emt 0:00:32]} 66. exd4 {[%emt 0:01:31]} exd4 {[%emt 0:00:15]} 67. Nd5+ {[%emt 0:00:39]} Kf7 {[%emt 0:00:09]} 68. Kc4 {[%emt 0:00:27]} d3 {[%emt 0:00:38]} 69. Kc3 {[%emt 0:00:12]} Nxg4 {[%emt 0:01:13]} 70. Kxd3 {[%emt 0:00:05]} Ne5+ {[%emt 0:00:28]} 71. Ke4 {[%emt 0:00:04]} Nc4 {[%emt 0:00:07]} 72. Ne3 {[%emt 0:01:21]} Nd6+ {[%emt 0:00:24]} 73. Kd5 {[%emt 0:00:12]} Ke7 {[%emt 0:00:13]} 74. Kc6 {[%emt 0:00:47]} Ne4 {[%emt 0:01:21]} 75. Ng4 {[%emt 0:00:08]} Kf8 {[%emt 0:00:35]} 76. Nxh6 {[%emt 0:01:25]} Nf2 {[%emt 0:00:21]} 77. Kd7 {[%emt 0:00:03]} Kg7 {[%emt 0:00:20]} 78. Ke6 {[%emt 0:00:09]} Nd3 {[%emt 0:00:37]} 79. Ng4 {[%emt 0:00:25]} Nf4+ {[%emt 0:00:04]} 80. Ke7 {[%emt 0:00:10]} Nxh5 {[%emt 0:00:06]} 1/2-1/2

[Event "WYCC 2018 O14"]
[Site "Halkidiki"]
[Date "2018.10.23"]
[Round "5"]
[White "Dwyer, Daniel"]
[Black "Turcan, Richard"]
[Result "1/2-1/2"]
[ECO "B23"]
[WhiteElo "2133"]
[BlackElo "2218"]
[Annotator "NA"]
[PlyCount "115"]
[EventDate "2018.10.20"]
[EventType "swiss"]
[EventCountry "GRE"]
[SourceTitle "playchess.com"]
[Source "ChessBase"]
[SourceQuality "1"]
[TimeControl "40/5400+30:1800+30"]

1. e4 c5 {[%emt 0:00:00]} 2. Nc3 {[%emt 0:00:00]} g6 {[%emt 0:00:39]} 3. f4 {[%emt 0:00:00]} Bg7 {[%emt 0:00:25]} 4. Nf3 {[%emt 0:00:00]} Nc6 {[%emt 0:01:49]} 5. Bb5 {[%emt 0:00:14]} d6 {[%emt 0:02:42]} 6. O-O {[%emt 0:02:49]} Nf6 {[%emt 0:05:35]} 7. d3 {[%emt 0:04:12]} Bd7 {[%emt 0:11:59]} 8. a4 {[%emt 0:11:35] LiveBook: 22 Games} a6 {[%emt 0:19:48] B23: Closed Sicilian: Lines without g3} (8... O-O 9. Bxc6 Bxc6 10. Qe1 e6 11. Kh1 b6 12. Bd2 Rc8 {½-½ (12) Hamdouchi,H (2600)-Edouard,R (2620) La Massana 2010}) 9. Bc4 {[%emt 0:03:23]} Bg4 {[%emt 0:04:09]} 10. h3 {[%emt 0:06:30]} Bxf3 {[%emt 0:00:08]} 11. Qxf3 {[%emt 0:00:21]} O-O {[%emt 0:07:07]} 12. Ne2 {[%emt 0:08:52]} Rb8 $146 {[%emt 0:03:29]} 13. c3 {[%emt 0:02:57]} b5 {[%emt 0:08:15]} 14. Ba2 {[%emt 0:09:02]} Qb6 {[%emt 0:02:05]} 15. axb5 {[%emt 0:05:14]} axb5 {[%emt 0:00:01]} 16. Be3 {[%emt 0:00:40]} b4 {[%emt 0:07:20]} 17. d4 {[%emt 0:05:59]} b3 $16 {[%emt 0:06:59]} (17... cxd4 $11 {keeps the balance.} 18. cxd4 Nd7) 18. Bb1 {[%emt 0:00:39]} cxd4 {[%emt 0:00:23]} 19. Nxd4 {[%emt 0:02:31]} Nxd4 {[%emt 0:00:45]} 20. cxd4 {[%emt 0:04:24]} Qb7 {[%emt 0:06:04]} 21. Bd3 {[%emt 0:03:49]} Ra8 {[%emt 0:00:35]} 22. Bd2 {[%emt 0:01:20]} Nd7 {[%emt 0:03:07]} 23. Bc3 {[%emt 0:02:09]} Rxa1 {[%emt 0:02:30]} 24. Rxa1 {[%emt 0:00:09]} Ra8 {[%emt 0:00:25]} 25. Qd1 {[%emt 0:05:29]} Rxa1 {[%emt 0:04:31]} 26. Qxa1 {[%emt 0:00:04]} Nf6 {[%emt 0:01:10]} 27. e5 {[%emt 0:03:44]} dxe5 {[%emt 0:00:29]} 28. fxe5 {[%emt 0:00:32]} Nd7 {[%emt 0:00:53]} 29. Qa3 {[%emt 0:02:09]} e6 {[%emt 0:00:29]} 30. Bc4 {[%emt 0:01:05]} Bf8 {[%emt 0:00:36]} 31. Qa4 {[%emt 0:01:33]} Nb6 {[%emt 0:00:30]} 32. Qxb3 {[%emt 0:00:35]} Qc6 {[%emt 0:00:09]} 33. Bd3 {[%emt 0:02:23]} Bh6 {[%emt 0:00:45]} 34. Qb4 {[%emt 0:02:03]} Be3+ {[%emt 0:00:22]} 35. Kh1 {[%emt 0:00:53]} Nd5 {[%emt 0:00:42]} 36. Qb8+ {[%emt 0:05:27]} Kg7 {[%emt 0:00:06]} 37. Bb5 {[%emt 0:00:20]} Qb6 {[%emt 0:00:46]} 38. Qxb6 {[%emt 0:00:27]} Nxb6 {[%emt 0:00:06]} 39. Bc6 {[%emt 0:00:32]} Nc4 {[%emt 0:01:03]} 40. d5 {[%emt 0:00:00]} Bb6 {[%emt 0:00:00]} 41. d6 {[%emt 0:04:42]} Kf8 {[%emt 0:13:44]} 42. Kh2 {[%emt 0:06:35]} f6 {[%emt 0:04:44]} 43. exf6 Nxd6 {[%emt 0:00:50]} 44. g4 {[%emt 0:10:13]} Kf7 {[%emt 0:03:13]} 45. Kg3 {[%emt 0:01:47]} g5 {[%emt 0:05:03]} 46. b4 {[%emt 0:03:10]} Bd8 {[%emt 0:02:00]} 47. b5 {[%emt 0:00:16]} Nc8 {[%emt 0:02:22]} 48. Kf3 {[%emt 0:02:46]} Bxf6 {[%emt 0:00:52]} 49. Ba5 {[%emt 0:00:46]} Bd4 {[%emt 0:00:42]} 50. Ke4 {[%emt 0:03:38]} Bf2 {[%emt 0:01:04]} 51. Bd2 {[%emt 0:02:08]} h6 {[%emt 0:00:33]} 52. Be3 {[%emt 0:00:21]} Bxe3 {[%emt 0:00:34]} 53. Kxe3 {[%emt 0:00:04]} Ke7 {[%emt 0:00:16]} 54. Kd4 {[%emt 0:00:30]} Kd6 {[%emt 0:00:12]} 55. Kc4 {[%emt 0:01:17]} Nb6+ {[%emt 0:01:24]} 56. Kd4 {[%emt 0:01:00]} Nc8 {[%emt 0:00:48]} 57. Bb7 {[%emt 0:00:20]} Nb6 {[%emt 0:00:10]} 58. Bc6 {[%emt 0:00:30] Ke5+ Ke4+} 1/2-1/2

[Event "WYCC 2018 O14"]
[Site "Halkidiki"]
[Date "2018.10.23"]
[Round "5"]
[White "Munshi, Aditya"]
[Black "Kouvidis, Ioannis"]
[Result "1/2-1/2"]
[ECO "C07"]
[WhiteElo "2133"]
[BlackElo "1896"]
[Annotator "NA"]
[PlyCount "98"]
[EventDate "2018.10.20"]
[EventType "swiss"]
[EventCountry "GRE"]
[SourceTitle "playchess.com"]
[Source "ChessBase"]
[SourceQuality "1"]
[TimeControl "40/5400+30:1800+30"]

1. e4 {[%emt 0:00:00]} e6 {[%emt 0:00:00]} 2. d4 {[%emt 0:00:00]} d5 {[%emt 0:00:00]} 3. Nd2 {[%emt 0:00:00]} c5 {[%emt 0:00:00]} 4. exd5 {[%emt 0:00:00]} Qxd5 {[%emt 0:00:12]} 5. Ngf3 {[%emt 0:00:01]} cxd4 {[%emt 0:00:10]} 6. Bc4 {[%emt 0:00:08]} Qd8 {[%emt 0:00:05]} 7. O-O {[%emt 0:00:27]} Nc6 {[%emt 0:00:03]} 8. Qe2 {[%emt 0:00:27]} a6 {[%emt 0:01:13]} 9. a4 {[%emt 0:02:12]} Nf6 {[%emt 0:12:25]} 10. Nb3 {[%emt 0:02:22]} d3 {[%emt 0:01:30]} 11. Bxd3 {[%emt 0:05:24]} Bd6 {[%emt 0:00:56]} 12. Bg5 {[%emt 0:02:26]} Qc7 {[%emt 0:01:41]} 13. g3 {[%emt 0:21:02]} Bd7 {[%emt 0:11:40]} 14. Nbd4 {[%emt 0:14:25]} Nxd4 {[%emt 0:00:49]} 15. Nxd4 {[%emt 0:00:10]} Be5 {[%emt 0:15:19]} 16. c3 {[%emt 0:04:02]} h6 {[%emt 0:01:21]} 17. Bd2 {[%emt 0:03:00]} O-O {[%emt 0:06:07]} 18. Rfe1 {[%emt 0:00:59]} Bd6 {[%emt 0:01:46]} 19. c4 {[%emt 0:07:44]} e5 {[%emt 0:09:33]} 20. Nf5 {[%emt 0:02:37]} e4 {[%emt 0:03:03]} 21. Nxd6 {[%emt 0:07:20]} Qxd6 {[%emt 0:01:42]} 22. Bc2 {[%emt 0:07:22]} Bg4 {[%emt 0:09:00]} 23. Qe3 {[%emt 0:00:49]} Bf3 {[%emt 0:01:40]} 24. Bd1 {[%emt 0:11:10]} Qc6 {[%emt 0:08:10]} 25. Bxf3 {[%emt 0:04:19]} exf3 {[%emt 0:00:02]} 26. Bc3 {[%emt 0:00:21]} Rfe8 {[%emt 0:02:54]} 27. Qf4 {[%emt 0:00:18]} Rxe1+ {[%emt 0:02:05]} 28. Rxe1 {[%emt 0:00:32]} Re8 {[%emt 0:02:15]} 29. Rxe8+ {[%emt 0:00:26]} Nxe8 {[%emt 0:00:19]} 30. b3 {[%emt 0:00:59]} Nc7 {[%emt 0:00:56]} 31. Qe5 {[%emt 0:01:50]} Ne6 {[%emt 0:00:26]} 32. Qd5 {[%emt 0:00:10]} Qb6 {[%emt 0:05:17]} 33. b4 {[%emt 0:00:47]} Ng5 {[%emt 0:01:22]} 34. c5 {[%emt 0:02:09]} Qg6 {[%emt 0:00:14]} 35. Qd1 {[%emt 0:00:58]} Nh3+ {[%emt 0:00:44]} 36. Kf1 {[%emt 0:00:00]} Qe4 {[%emt 0:00:27]} 37. Bd4 {[%emt 0:00:49]} Ng5 {[%emt 0:01:01]} 38. b5 {[%emt 0:00:43]} Ne6 {[%emt 0:00:45]} 39. Be3 {[%emt 0:00:30]} axb5 {[%emt 0:01:12]} 40. axb5 {[%emt 0:00:00]} Qc4+ {[%emt 0:00:00]} 41. Kg1 {[%emt 0:01:17]} Qxb5 {[%emt 0:06:25]} 42. Qxf3 {[%emt 0:00:14]} Nxc5 {[%emt 0:00:17]} 43. Bxc5 {[%emt 0:00:54]} Qxc5 {[%emt 0:00:03]} 44. Qxb7 {[%emt 0:00:11]} Qe5 {[%emt 0:01:27]} 45. Qc8+ {[%emt 0:00:10]} Kh7 {[%emt 0:00:06]} 46. Qb7 {[%emt 0:00:20]} Kg8 {[%emt 0:00:25]} 47. Kg2 {[%emt 0:00:06]} g6 {[%emt 0:00:08]} 48. h3 {[%emt 0:00:25]} h5 {[%emt 0:00:15]} 49. h4 {[%emt 0:00:13]} Kg7 {[%emt 0:00:04]} 1/2-1/2

[Event "WYCC 2018 O14"]
[Site "Halkidiki"]
[Date "2018.10.23"]
[Round "5"]
[White "Risteski, Emil"]
[Black "Trushko, Andrii"]
[Result "1/2-1/2"]
[ECO "B12"]
[WhiteElo "2120"]
[BlackElo "1906"]
[Annotator "NA"]
[PlyCount "56"]
[EventDate "2018.10.20"]
[EventType "swiss"]
[EventCountry "GRE"]
[SourceTitle "playchess.com"]
[Source "ChessBase"]
[SourceQuality "1"]
[TimeControl "40/5400+30:1800+30"]

1. e4 {[%emt 0:00:00]} c6 {[%emt 0:00:00]} 2. d4 {[%emt 0:00:00]} d5 {[%emt 0:00:06]} 3. e5 {[%emt 0:00:00]} Bf5 {[%emt 0:00:47]} 4. Nd2 {[%emt 0:03:06]} e6 {[%emt 0:00:53]} 5. Nb3 {[%emt 0:01:56]} c5 {[%emt 0:01:15]} 6. dxc5 {[%emt 0:02:14]} Bxc5 {[%emt 0:00:13]} 7. Nxc5 {[%emt 0:01:19]} Qa5+ {[%emt 0:00:05]} 8. c3 {[%emt 0:00:05]} Qxc5 {[%emt 0:00:02]} 9. Be3 {[%emt 0:00:09]} Qc7 {[%emt 0:00:04]} 10. f4 {[%emt 0:00:37]} Ne7 {[%emt 0:01:14]} 11. Nf3 {[%emt 0:00:46]} Nbc6 {[%emt 0:01:59]} 12. Be2 {[%emt 0:03:15]} O-O {[%emt 0:04:55]} 13. O-O {[%emt 0:03:17]} f6 {[%emt 0:05:05]} 14. exf6 {[%emt 0:03:22]} Rxf6 {[%emt 0:00:11]} 15. Nd4 {[%emt 0:03:31]} Be4 {[%emt 0:02:31]} 16. Bg4 {[%emt 0:08:36]} Nf5 {[%emt 0:09:02]} 17. Nxf5 {[%emt 0:01:56]} exf5 {[%emt 0:00:15]} 18. Bf3 {[%emt 0:02:46]} Re8 {[%emt 0:10:18]} 19. Qd2 {[%emt 0:06:47]} h6 {[%emt 0:07:54]} 20. Rae1 {[%emt 0:07:50]} Rfe6 {[%emt 0:00:52]} 21. Bd1 {[%emt 0:08:18]} Na5 {[%emt 0:03:44]} 22. Bd4 {[%emt 0:05:06]} Nc4 {[%emt 0:00:52]} 23. Qf2 {[%emt 0:00:51]} Bd3 {[%emt 0:06:26]} 24. Rxe6 {[%emt 0:01:32]} Rxe6 {[%emt 0:00:06]} 25. Re1 {[%emt 0:00:47]} Rxe1+ {[%emt 0:12:16]} 26. Qxe1 {[%emt 0:00:05]} Qxf4 {[%emt 0:01:09]} 27. Bb3 {[%emt 0:04:30]} a6 {[%emt 0:04:14]} 28. h3 Be4 1/2-1/2

[Event "WYCC 2018 O14"]
[Site "Halkidiki"]
[Date "2018.10.23"]
[Round "5"]
[White "Rasti, Arvin"]
[Black "Naqopia, Giorgi"]
[Result "1/2-1/2"]
[ECO "C41"]
[WhiteElo "2064"]
[BlackElo "1857"]
[Annotator "NA"]
[PlyCount "160"]
[EventDate "2018.10.20"]
[EventType "swiss"]
[EventCountry "GRE"]
[SourceTitle "playchess.com"]
[Source "ChessBase"]
[SourceQuality "1"]
[TimeControl "40/5400+30:1800+30"]

1. d4 {[%emt 0:00:00]} d6 {[%emt 0:00:00]} 2. e4 {[%emt 0:00:00]} Nf6 {[%emt 0:00:00]} 3. Nc3 {[%emt 0:00:00]} e5 {[%emt 0:00:00]} 4. Nf3 {[%emt 0:00:00]} Nbd7 {[%emt 0:00:00]} 5. Bc4 {[%emt 0:00:00]} Be7 {[%emt 0:00:00]} 6. O-O {[%emt 0:00:02]} O-O {[%emt 0:00:00]} 7. a4 {[%emt 0:00:03]} a5 {[%emt 0:00:48]} 8. Re1 {[%emt 0:00:07]} c6 {[%emt 0:00:26]} 9. h3 {[%emt 0:00:20]} Qc7 {[%emt 0:00:20]} 10. Ba2 {[%emt 0:00:15]} h6 {[%emt 0:00:52]} 11. Be3 {[%emt 0:01:10]} Re8 {[%emt 0:01:33]} 12. Qd2 {[%emt 0:03:27]} Nf8 {[%emt 0:02:59]} 13. Rad1 {[%emt 0:01:59]} Bd7 {[%emt 0:12:35]} 14. Qe2 $14 {[%emt 0:16:57]} (14. Bxh6 $16 gxh6 15. dxe5 (15. Qxh6 N6h7 $14) 15... dxe5 16. Qxh6) 14... Qb8 {[%emt 0:20:07]} 15. d5 {[%emt 0:10:14]} c5 {[%emt 0:03:24]} 16. Bc4 {[%emt 0:04:10]} g5 {[%emt 0:04:11]} 17. Nh2 {[%emt 0:03:20]} Ng6 {[%emt 0:01:57]} 18. Bc1 {[%emt 0:04:58]} Kh7 {[%emt 0:05:49]} 19. Bb5 {[%emt 0:01:26]} Qc8 {[%emt 0:01:38]} 20. Bxd7 {[%emt 0:00:33]} Qxd7 {[%emt 0:00:02]} 21. Ng4 {[%emt 0:00:41]} Nxg4 {[%emt 0:03:11]} 22. Qxg4 {[%emt 0:00:26]} Rad8 {[%emt 0:05:36]} 23. g3 {[%emt 0:02:38]} Kg7 {[%emt 0:04:40]} 24. Kg2 {[%emt 0:04:00]} Rh8 {[%emt 0:01:45]} 25. Qxd7 {[%emt 0:03:13]} Rxd7 {[%emt 0:00:02]} 26. Nb5 {[%emt 0:00:33]} Rdd8 {[%emt 0:01:19]} 27. Bd2 {[%emt 0:00:40]} b6 {[%emt 0:00:48]} 28. Re3 {[%emt 0:00:40]} Nf8 {[%emt 0:05:58]} 29. Rb3 {[%emt 0:02:07]} Nd7 {[%emt 0:00:07]} 30. Na3 {[%emt 0:03:25]} Rb8 {[%emt 0:00:29]} 31. Nc4 {[%emt 0:00:30]} Rhc8 {[%emt 0:05:05]} 32. Bc3 {[%emt 0:03:24]} f6 {[%emt 0:02:19]} 33. Rb5 {[%emt 0:01:53]} Kf7 {[%emt 0:00:47]} 34. Rf1 {[%emt 0:00:46]} Rg8 {[%emt 0:04:36]} 35. Ne3 {[%emt 0:01:12]} Rg6 {[%emt 0:06:08]} 36. Bd2 {[%emt 0:01:33]} Bd8 37. Nf5 {[%emt 0:01:33]} Bc7 {[%emt 0:00:41]} 38. h4 {[%emt 0:00:31]} h5 {[%emt 0:02:13]} 39. Rh1 {[%emt 0:01:52]} g4 {[%emt 0:00:37]} 40. Ra1 {[%emt 0:00:00]} Ra8 {[%emt 0:00:00]} 41. Ra3 {[%emt 0:04:26]} Rb8 {[%emt 0:08:10]} 42. Rab3 {[%emt 0:00:57]} Kf8 {[%emt 0:02:50]} 43. Kf1 {[%emt 0:01:19]} Rg8 {[%emt 0:00:21]} 44. Ke2 {[%emt 0:01:11]} Rh8 {[%emt 0:01:29]} 45. Ke1 {[%emt 0:02:22]} Kf7 {[%emt 0:01:01]} 46. Nh6+ {[%emt 0:00:30]} Kg6 {[%emt 0:00:47]} 47. Nf5 {[%emt 0:00:13]} Kf7 {[%emt 0:00:04]} 48. Ne3 {[%emt 0:02:01]} Rhc8 {[%emt 0:06:08]} 49. Nc4 {[%emt 0:00:44]} Ke7 {[%emt 0:00:37]} 50. f3 {[%emt 0:00:38]} Rg8 {[%emt 0:01:07]} 51. fxg4 {[%emt 0:00:25]} Rxg4 {[%emt 0:00:09]} 52. Re3 {[%emt 0:02:05]} f5 {[%emt 0:00:43]} 53. Re2 {[%emt 0:01:09]} f4 {[%emt 0:07:14]} 54. gxf4 {[%emt 0:00:49]} exf4 {[%emt 0:00:06]} 55. Rf2 {[%emt 0:01:03]} Ne5 {[%emt 0:01:06]} 56. Nxe5 {[%emt 0:01:47]} dxe5 {[%emt 0:00:02]} 57. c3 {[%emt 0:00:34]} c4 {[%emt 0:01:57]} 58. b4 {[%emt 0:00:59]} cxb3 {[%emt 0:00:18]} 59. Rxb3 {[%emt 0:00:06]} Bd6 {[%emt 0:00:05]} 60. c4 {[%emt 0:01:11]} Bc5 {[%emt 0:00:06]} 61. Bxa5 {[%emt 0:00:37]} Bxf2+ {[%emt 0:04:48]} 62. Kxf2 {[%emt 0:00:09]} Rc8 {[%emt 0:02:40]} 63. Rxb6 {[%emt 0:01:59]} Rxc4 {[%emt 0:00:09]} 64. Re6+ {[%emt 0:00:28]} Kd7 {[%emt 0:00:39]} 65. Rxe5 {[%emt 0:02:58]} Rxa4 {[%emt 0:00:31]} 66. Bb6 {[%emt 0:00:56]} Rxh4 {[%emt 0:00:53]} 67. Bc5 {[%emt 0:00:49]} Rc4 {[%emt 0:02:21]} 68. d6 {[%emt 0:00:41]} Rc2+ {[%emt 0:00:32]} 69. Kg1 {[%emt 0:00:44]} Rc1+ {[%emt 0:02:01]} 70. Kg2 {[%emt 0:00:24]} Rc2+ {[%emt 0:01:24]} 71. Kf3 {[%emt 0:00:58]} Rc3+ {[%emt 0:01:04]} 72. Kg2 {[%emt 0:01:26]} f3+ {[%emt 0:00:34]} 73. Kg1 {[%emt 0:00:52]} f2+ {[%emt 0:00:45]} 74. Kxf2 {[%emt 0:02:02]} Rh2+ {[%emt 0:00:09]} 75. Kg1 {[%emt 0:00:01]} Rb2 {[%emt 0:00:15]} 76. Re7+ {[%emt 0:01:40]} Kd8 {[%emt 0:00:09]} 77. Bf2 {[%emt 0:00:19]} Rc1+ {[%emt 0:00:38]} 78. Kg2 {[%emt 0:00:08]} Rcc2 {[%emt 0:00:10]} 79. Rf7 {[%emt 0:00:20]} Re2 {[%emt 0:00:25]} 80. d7 {[%emt 0:01:18]} Rxf2+ {[%emt 0:01:46]} 1/2-1/2

[Event "WYCC 2018 O14"]
[Site "Halkidiki"]
[Date "2018.10.23"]
[Round "5"]
[White "Antonica, Dragos-Andrei"]
[Black "Trifan, Andrei Ioan"]
[Result "1/2-1/2"]
[ECO "E71"]
[WhiteElo "2061"]
[BlackElo "2290"]
[Annotator "NA"]
[PlyCount "77"]
[EventDate "2018.10.20"]
[EventType "swiss"]
[EventCountry "GRE"]
[SourceTitle "playchess.com"]
[Source "ChessBase"]
[SourceQuality "1"]
[TimeControl "40/5400+30:1800+30"]

1. d4 {[%emt 0:00:00]} Nf6 {[%emt 0:00:00]} 2. c4 {[%emt 0:00:00]} g6 {[%emt 0:00:17]} 3. Nc3 {[%emt 0:00:00]} Bg7 {[%emt 0:00:30]} 4. e4 {[%emt 0:00:04]} d6 {[%emt 0:00:33]} 5. h3 {[%emt 0:00:39]} O-O {[%emt 0:03:27]} 6. Be3 {[%emt 0:00:16]} e5 {[%emt 0:11:48]} 7. d5 {[%emt 0:03:17]} a5 {[%emt 0:03:33]} 8. Nge2 {[%emt 0:05:24] E71: King's Indian: 4 e4 d6 5 h3} Na6 {[%emt 0:02:46]} 9. g4 {[%emt 0:03:45]} c6 {[%emt 0:05:21]} 10. Ng3 {[%emt 0:05:06]} cxd5 {[%emt 0:09:16]} (10... Nc5 11. g5 Nfd7 12. h4 cxd5 13. Nxd5 Nb6 14. Nc3 Be6 15. b3 a4 {1-0 (36) Ding,L (2777)-Amonatov,F (2636) Riadh 2017}) 11. cxd5 {[%emt 0:00:14]} Nc5 {[%emt 0:01:51]} 12. Be2 {[%emt 0:01:43]} Bd7 {[%emt 0:07:05]} 13. Kf1 $146 {[%emt 0:17:34]} ({Predecessor:} 13. h4 a4 14. f3 Qa5 15. Qd2 Rfc8 {½-½ (41) Dobrovoljc,V (2316)-Secheres,A (2408) Manavgat 2018}) 13... a4 {[%emt 0:05:38]} 14. Kg2 {[%emt 0:20:51]} Qa5 {[%emt 0:06:13]} 15. a3 {[%emt 0:07:55]} b5 {[%emt 0:07:31]} 16. g5 {[%emt 0:09:18]} Ne8 {[%emt 0:00:53]} 17. h4 {[%emt 0:00:40]} b4 {[%emt 0:08:32]} 18. Na2 {[%emt 0:00:44]} bxa3 {[%emt 0:02:05]} 19. bxa3 {[%emt 0:00:12]} f5 {[%emt 0:03:31]} 20. gxf6 {[%emt 0:03:35]} Nxf6 {[%emt 0:00:21]} 21. f3 {[%emt 0:09:25]} Nb3 {[%emt 0:04:40]} 22. Rb1 {[%emt 0:00:17]} Be8 {[%emt 0:01:36]} 23. h5 {[%emt 0:06:02]} Nxh5 {[%emt 0:01:40]} 24. Nxh5 {[%emt 0:01:08]} gxh5 {[%emt 0:00:02]} 25. Nc1 $17 {[%emt 0:00:22]} Rc8 {[%emt 0:05:03]} 26. Nxb3 {[%emt 0:02:02]} axb3 {[%emt 0:00:04]} 27. Qxb3 {[%emt 0:00:19]} Rc3 {[%emt 0:01:40]} 28. Bd2 {[%emt 0:00:15]} Rxb3 {[%emt 0:00:12]} 29. Bxa5 {[%emt 0:00:01]} Rxa3 {[%emt 0:00:29]} 30. Ra1 {[%emt 0:01:36]} Rxa1 {[%emt 0:04:15]} 31. Rxa1 {[%emt 0:00:00]} Rf6 {[%emt 0:00:47]} 32. Bd8 Rg6+ {[%emt 0:01:15]} 33. Kf2 {[%emt 0:01:50]} Bf6 {[%emt 0:01:58]} 34. Bxf6 {[%emt 0:00:31]} Rxf6 {[%emt 0:00:02]} 35. Ra8 {[%emt 0:00:21]} Rf8 {[%emt 0:00:28]} 36. Rd8 {[%emt 0:00:56]} Bg6 {[%emt 0:00:36]} 37. Rxd6 {[%emt 0:00:39]} Bxe4 {[%emt 0:00:02]} 38. Re6 {[%emt 0:00:55]} Bxd5 {[%emt 0:00:40]} 39. Rxe5 {[%emt 0:00:03]} 1/2-1/2